lending/lending_fUSD_20250920
["ID","MTS","AMOUNT","RATE_DAILY","PERIOD"]
[386588468,1758411109313,-1703.48,0.0002356,2]
[386588469,1758411109324,-400.0,0.0002356,2]
[386588470,1758411109335,-4961.42,0.0002356,2]
[386588471,1758411109347,-400.0,0.0002356,2]
[386588472,1758411109360,-400.0,0.0002356,2]
[386588473,1758411109371,-400.0,0.0002356,2]
[386588474,1758411109382,-400.0,0.0002356,2]
[386588475,1758411109394,-400.0,0.0002356,2]
[386588476,1758411109406,-400.0,0.0002356,2]
[386588477,1758411109418,-532.24,0.0002356,2]
[386588478,1758411109430,-919.96,0.0002356,2]
[386588479,1758411109441,-635.2,0.0002356,2]
[386588480,1758411109453,-1866.94,0.0002356,2]
[386588481,1758411109464,-400.0,0.0002356,2]
[386588482,1758411109475,-400.0,0.0002356,2]
[386588483,1758411109487,-400.0,0.0002356,2]
[386588484,1758411109498,-400.0,0.0002356,2]
[386588485,1758411109510,-12330.36,0.0002356,2]
[386588486,1758411109521,-400.0,0.0002356,2]
[386588487,1758411109535,-1327.89,0.0002356,2]
[386588488,1758411109547,-400.0,0.0002356,2]
[386588489,1758411109558,-417.15,0.0002356,2]
[386588490,1758411109570,-4766.73,0.0002356,2]
[386588491,1758411109581,-963.01,0.0002356,2]
[386588493,1758411109592,-400.0,0.0002356,2]
[386588495,1758411109604,-400.0,0.0002356,2]
[386588496,1758411109615,-376.4,0.0002356,2]
[386588497,1758411109627,-400.0,0.0002356,2]
[386588498,1758411109640,-1022.23,0.0002356,2]
[386588499,1758411109651,-2421.52,0.0002356,2]
[386588500,1758411109663,-1022.23,0.0002356,2]
[386588501,1758411109674,-1022.23,0.0002356,2]
[386588503,1758411109685,-1022.23,0.0002356,2]
[386588505,1758411109697,-1022.23,0.0002356,2]
[386588506,1758411109709,-1022.23,0.0002356,2]
[386588507,1758411109721,-400.0,0.0002356,2]
[386588508,1758411109732,-400.0,0.0002356,2]
[386588509,1758411109743,-433.48,0.0002356,2]
[386588510,1758411109755,-661.84,0.0002356,2]
[386588512,1758411109766,-400.0,0.0002356,2]
[386588513,1758411109777,-636.33,0.0002356,2]
[386588514,1758411109788,-4239.95,0.0002356,2]
[386588515,1758411109808,-400.0,0.0002356,2]
[386588516,1758411109819,-4248.55,0.0002356,2]
[386588517,1758411109830,-400.0,0.0002356,2]
[386588518,1758411109841,-562.78,0.0002356,2]
[386588520,1758411109853,-408.02,0.0002356,2]
[386588521,1758411109866,-400.0,0.0002356,2]
[386588522,1758411109878,-455.24,0.0002356,2]
[386588523,1758411109890,-400.0,0.0002356,2]
[386588524,1758411109902,-400.0,0.0002356,2]
[386588525,1758411109914,-905.3,0.0002356,2]
[386588526,1758411109926,-400.0,0.0002356,2]
[386588528,1758411109938,-400.0,0.0002356,2]
[386588529,1758411109949,-2788.38,0.0002356,2]
[386588530,1758411109960,-400.0,0.0002356,2]
[386588531,1758411109972,-400.0,0.0002356,2]
[386588532,1758411109983,-400.0,0.0002356,2]
[386588533,1758411109995,-400.0,0.0002356,2]
[386588535,1758411110006,-400.0,0.0002356,2]
[386588536,1758411110018,-903.46,0.0002356,2]
[386588537,1758411110029,-763.28,0.0002356,2]
[386588538,1758411110041,-400.0,0.0002356,2]
[386588539,1758411110052,-405.95,0.00023561,2]
[386588540,1758411110063,-400.0,0.00023561,2]
[386588541,1758411110074,-400.0,0.00023561,2]
[386588543,1758411110086,-499.4,0.00023561,2]
[386588544,1758411110097,-400.0,0.00023561,2]
[386588545,1758411110108,-400.0,0.00023561,2]
[386588546,1758411110119,-400.0,0.00023561,2]
[386588547,1758411110131,-440.88413457,0.00023561,2]
[386588548,1758411110142,-400.0,0.00023561,2]
[386588550,1758411110154,-1221.05,0.00023561,2]
[386588551,1758411110166,-412.83,0.00023561,2]
[386588552,1758411110177,-456.39,0.00023561,2]
[386588553,1758411110188,-400.0,0.00023561,2]
[386588554,1758411110199,-422.18,0.00023561,2]
[386588555,1758411110210,-400.0,0.00023561,2]
[386588556,1758411110222,-735.5,0.00023561,2]
[386588557,1758411110233,-400.0,0.00023561,2]
[386588559,1758411110245,-400.0,0.00023561,2]
[386588560,1758411110256,-973.78,0.00023561,2]
[386588561,1758411110267,-400.0,0.00023561,2]
[386588562,1758411110279,-780.68,0.00023561,2]
[386588563,1758411110290,-460.22,0.00023561,2]
[386588564,1758411110302,-400.0,0.00023561,2]
[386588566,1758411110313,-445.21,0.00023561,2]
[386588567,1758411110325,-783.53,0.00023561,2]
[386588568,1758411110336,-400.0,0.00023561,2]
[386588569,1758411110347,-1017.9,0.00023561,2]
[386588570,1758411110359,-400.0,0.00023561,2]
[386588571,1758411110371,-400.0,0.00023561,2]
[386588573,1758411110383,-400.0,0.00023561,2]
[386588575,1758411110394,-400.0,0.00023561,2]
[386588577,1758411110405,-400.0,0.00023561,2]
[386588579,1758411110417,-151.0,0.00023561,7]
[386588580,1758411110429,-400.0,0.00023561,2]
[386588581,1758411110440,-400.0,0.00023561,2]
[386588582,1758411110452,-400.0,0.00023561,2]
[386588583,1758411110463,-400.0,0.00023561,2]
[386588584,1758411110475,-400.0,0.00023561,2]
[386588585,1758411110486,-400.0,0.00023561,2]
[386588586,1758411110497,-905.84,0.00023561,2]
[386588588,1758411110508,-400.0,0.00023561,2]
[386588589,1758411110519,-400.0,0.00023561,2]
[386588590,1758411110530,-400.0,0.00023561,2]
[386588591,1758411110541,-516.97,0.00023561,2]
[386588592,1758411110553,-917.42,0.00023561,2]
[386588593,1758411110564,-400.0,0.00023561,2]
[386588594,1758411110575,-400.0,0.00023561,2]
[386588595,1758411110586,-416.67,0.00023561,2]
[386588596,1758411110598,-1155.51,0.00023561,2]
[386588597,1758411110609,-400.0,0.00023561,2]
[386588598,1758411110620,-400.0,0.00023561,2]
[386588599,1758411110632,-400.0,0.00023561,2]
[386588600,1758411110643,-427.62,0.00023561,2]
[386588601,1758411110654,-466.23,0.00023561,2]
[386588602,1758411110665,-400.0,0.00023561,2]
[386588603,1758411110677,-417.39,0.00023561,2]
[386588604,1758411110688,-400.0,0.00023561,2]
[386588605,1758411110699,-470.39,0.00023561,2]
[386588606,1758411110710,-400.0,0.00023561,2]
[386588607,1758411110721,-400.0,0.00023561,2]
[386588608,1758411110732,-400.0,0.00023561,2]
[386588609,1758411110743,-400.0,0.00023561,2]
[386588610,1758411110755,-400.0,0.00023561,2]
[386588611,1758411110766,-400.0,0.00023561,2]
[386588612,1758411110778,-753.02,0.00023561,2]
[386588613,1758411110789,-1423.3,0.00023561,2]
[386588614,1758411110800,-1080.62,0.00023561,2]
[386588615,1758411110812,-25010.4,0.00023561,2]
[386588616,1758411110824,-430.06,0.00023561,2]
[386588617,1758411110835,-1865.61,0.00023561,2]
[386588618,1758411110847,-2667.35,0.00023561,2]
[386588619,1758411110859,-1922.03,0.00023561,2]
[386588620,1758411110870,-3013.62,0.00023561,2]
[386588621,1758411110882,-2227.82,0.00023561,2]
[386588622,1758411110894,-400.0,0.00023561,2]
[386588623,1758411110905,-1911.57,0.00023561,2]
[386588624,1758411110916,-1326.64,0.00023561,2]
[386588625,1758411110928,-1598.81,0.00023561,2]
[386588626,1758411110939,-1006.97,0.00023561,2]
[386588627,1758411110951,-400.0,0.00023561,2]
[386588628,1758411110963,-2287.61,0.00023561,2]
[386588629,1758411110975,-1946.76,0.00023561,2]
[386588630,1758411110988,-2942.69,0.00023561,2]
[386588631,1758411111000,-662.64,0.00023561,2]
[386588632,1758411111011,-635.03,0.00023561,2]
[386588633,1758411111022,-510.31,0.00023561,2]
[386588634,1758411111034,-400.0,0.00023561,2]
[386588635,1758411111046,-400.0,0.00023561,2]
[386588636,1758411111058,-2086.33,0.00023561,2]
[386588637,1758411111069,-406.76176787,0.00023561,2]
[386588638,1758411111080,-382.94333762,0.00023561,2]
[386588639,1758411111091,-4322.37,0.00023561,2]
[386588640,1758411111103,-1428.44,0.00023561,2]
[386588641,1758411111116,-1503.82,0.00023561,2]
[386588642,1758411111127,-400.0,0.00023561,2]
[386588643,1758411111139,-1087.06,0.00023561,2]
[386588644,1758411111151,-400.0,0.00023561,2]
[386588645,1758411111702,-1799.59,0.00023561,2]
[386588646,1758411111777,-517.51,0.00023561,2]
[386588647,1758411111789,-1269.39,0.00023561,2]
[386588648,1758411111799,-400.0,0.00023561,2]
[386588649,1758411111808,-400.0,0.00023561,2]
[386588650,1758411111818,-810.42,0.00023561,2]
[386588651,1758411111827,-5158.25,0.00023561,2]
[386588652,1758411111838,-842.58,0.00023561,2]
[386588653,1758411111847,-1153.91,0.00023561,2]
[386588654,1758411111858,-646.59,0.00023561,2]
[386588655,1758411111868,-400.0,0.00023561,2]
[386588656,1758411111877,-1052.06,0.00023561,2]
[386588657,1758411111888,-400.0,0.00023561,2]
[386588658,1758411111898,-1366.55,0.00023561,2]
[386588659,1758411111908,-400.0,0.00023561,2]
[386588660,1758411111917,-697.33,0.00023561,2]
[386588661,1758411111927,-400.0,0.00023561,2]
[386588662,1758411111937,-404.27,0.00023561,2]
[386588663,1758411111947,-400.0,0.00023561,2]
[386588664,1758411111956,-542.58,0.00023561,2]
[386588665,1758411111966,-1046.52,0.00023561,2]
[386588666,1758411111976,-400.0,0.00023561,2]
[386588667,1758411111986,-92981.71,0.000236,7]
[386588668,1758411111997,-12468.19,0.000237,2]
[386588669,1758411112007,-400.0,0.00023733,2]
[386588670,1758411112016,-400.0,0.00023733,2]
[386588671,1758411112027,-400.0,0.00023733,2]
[386588672,1758411112036,-400.0,0.00023733,2]
[386588673,1758411112046,-400.0,0.00023734,2]
[386588674,1758411112056,-400.0,0.00023734,2]
[386588675,1758411112066,-400.0,0.00023734,2]
[386588676,1758411112076,-400.0,0.00023734,2]
[386588677,1758411112086,-400.0,0.00023734,2]
[386588678,1758411112096,-400.0,0.00023734,2]
[386588679,1758411112106,-400.0,0.00023734,2]
[386588680,1758411112116,-400.0,0.00023734,2]
[386588681,1758411112125,-400.0,0.00023734,2]
[386588682,1758411112135,-258.99697251,0.00023734,2]
[386588683,1758411112144,-400.0,0.00023734,2]
[386588684,1758411112156,-400.0,0.00023734,2]
[386588685,1758411112167,-400.0,0.00023734,2]
[386588686,1758411112177,-400.0,0.00023734,2]
[386588687,1758411112187,-400.0,0.00023734,2]
[386588688,1758411112196,-400.0,0.00023734,2]
[386588689,1758411112206,-400.0,0.00023734,2]
[386588690,1758411112216,-432.23659028,0.00023734,2]
[386588691,1758411112226,-400.0,0.00023734,2]
[386588692,1758411112235,-161.6311432,0.00023734,2]
[386588693,1758411112245,-400.0,0.00023734,2]
[386588694,1758411112255,-400.0,0.00023734,2]
[386588695,1758411112265,-400.0,0.00023734,2]
[386588696,1758411112275,-400.0,0.00023734,2]
[386588697,1758411112284,-400.0,0.00023734,2]
[386588698,1758411112295,-400.0,0.00023734,2]
[386588699,1758411112305,-156.05093393,0.00023734,2]
[386588700,1758411112315,-400.0,0.00023734,2]
[386588701,1758411112325,-400.0,0.00023734,2]
[386588702,1758411112335,-400.0,0.00023734,2]
[386588703,1758411112345,-2048.99,0.00023734,2]
[386588704,1758411112355,-1659.76,0.00023734,2]
[386588705,1758411112366,-1236.79,0.00023734,2]
[386588706,1758411112375,-4173.28,0.00023734,2]
[386588707,1758411112385,-4633.73,0.00023734,2]
[386588708,1758411112395,-6322.23,0.00023734,2]
[386588709,1758411112405,-4106.46,0.00023734,2]
[386588710,1758411112418,-400.0,0.00023734,2]
[386588711,1758411112427,-1453.11,0.00023734,2]
[386588712,1758411112437,-2677.19,0.00023734,2]
[386588713,1758411112447,-400.0,0.00023734,2]
[386588714,1758411112456,-248.51,0.00023734,2]
[386588715,1758411112467,-2457.51,0.00023734,2]
[386588716,1758411112476,-255.09,0.00023734,2]
[386588717,1758411112486,-838.21,0.00023797,2]
[386588718,1758411112496,-2074.45,0.00023811,2]
[386588719,1758411112506,-1625.54,0.00023811,2]
[386588720,1758411112525,-400.0,0.00023811,2]
[386588721,1758411112540,-400.0,0.00023811,2]
[386588722,1758411112550,-400.0,0.00023811,2]
[386588723,1758411112560,-400.0,0.00023811,2]
[386588724,1758411112570,-1263.92,0.00023811,2]
[386588725,1758411112580,-1222.29,0.00023811,2]
[386588726,1758411112589,-2100.68,0.00023811,2]
[386588727,1758411112598,-1639.16,0.00023811,2]
[386588728,1758411112608,-1878.53,0.00023811,2]
[386588729,1758411112617,-1629.3,0.00023811,2]
[386588730,1758411112626,-469.56,0.00023811,2]
[386588731,1758411112635,-522.46919337,0.00023811,2]
[386588732,1758411112645,-694.32,0.00023811,2]
[386588733,1758411112656,-400.0,0.00023811,2]
[386588734,1758411112665,-1367.01,0.00023811,2]
[386588735,1758411112674,-405.89087357,0.00023811,2]
[386588736,1758411112683,-1419.53,0.00023811,2]
[386588737,1758411112693,-1719.26,0.00023811,2]
[386588738,1758411112702,-400.0,0.00023811,2]
[386588739,1758411112712,-1671.88,0.00023811,2]
[386588740,1758411112721,-888.24,0.00023811,2]
[386588741,1758411112731,-1628.26,0.00023811,2]
[386588742,1758411112740,-178.78,0.00023811,2]
[386588743,1758411112750,-1412.53,0.00023811,2]
[386588744,1758411112760,-1577.85,0.00023811,2]
[386588745,1758411112770,-842.81,0.00023811,2]
[386588746,1758411112780,-1273.12,0.00023811,2]
[386588747,1758411112790,-400.0,0.00023811,2]
[386588748,1758411112800,-400.0,0.00023811,2]
[386588749,1758411112810,-1429.73,0.00023811,2]
[386588750,1758411112819,-1696.32,0.00023811,2]
[386588751,1758411112829,-1295.93,0.00023811,2]
[386588752,1758411112840,-400.0,0.00023811,2]
[386588753,1758411112850,-1872.03,0.00023811,2]
[386588754,1758411112860,-400.0,0.00023811,2]
[386588755,1758411112870,-1984.61,0.00023811,2]
[386588756,1758411112880,-1060.07,0.00023811,2]
[386588757,1758411112889,-1766.38,0.00023811,2]
[386588758,1758411112899,-1359.08,0.00023811,2]
[386588759,1758411112909,-1403.13,0.00023811,2]
[386588760,1758411112919,-831.3,0.00023811,2]
[386588761,1758411112929,-1537.29,0.00023811,2]
[386588762,1758411112939,-400.0,0.00023811,2]
[386588763,1758411112949,-599.84,0.00023811,2]
[386588764,1758411112959,-1268.35,0.00023811,2]
[386588765,1758411112968,-1727.04,0.00023811,2]
[386588766,1758411112978,-400.0,0.00023811,2]
[386588767,1758411112988,-2375.26,0.00023811,2]
[386588768,1758411112998,-1493.62,0.00023811,2]
[386588769,1758411113007,-1303.44,0.00023811,2]
[386588770,1758411113017,-1001.56,0.00023811,2]
[386588771,1758411113027,-400.0,0.00023811,2]
[386588772,1758411113036,-965.37,0.00023811,2]
[386588773,1758411113046,-1822.94,0.00023811,2]
[386588774,1758411113056,-1599.73,0.00023811,2]
[386588775,1758411113067,-1433.45,0.00023811,2]
[386588776,1758411113076,-1366.81,0.00023811,2]
[386588777,1758411113086,-634.25,0.00023811,2]
[386588778,1758411113095,-409.44,0.00023811,2]
[386588779,1758411113105,-709.54,0.00023811,2]
[386588780,1758411113116,-400.0,0.00023811,2]
[386588781,1758411113126,-1263.48,0.00023811,2]
[386588782,1758411113135,-1602.7,0.00023811,2]
[386588783,1758411113145,-813.09,0.00023811,2]
[386588784,1758411113155,-1429.44,0.00023811,2]
[386588785,1758411113164,-1107.77,0.00023811,2]
[386588786,1758411113176,-1220.63,0.00023811,2]
[386588787,1758411113186,-400.0,0.00023811,2]
[386588788,1758411113196,-1486.0,0.00023811,2]
[386588789,1758411113206,-2058.56,0.00023811,2]
[386588790,1758411113216,-400.0,0.00023811,2]
[386588791,1758411113226,-1294.61,0.00023811,2]
[386588792,1758411113235,-400.0,0.00023811,2]
[386588793,1758411113245,-1347.56,0.00023811,2]
[386588794,1758411113255,-1433.89,0.00023811,2]
[386588795,1758411113264,-1179.5,0.00023811,2]
[386588796,1758411113273,-604.01,0.00023811,2]
[386588797,1758411113283,-586.82,0.00023811,2]
[386588798,1758411113292,-919.15,0.00023811,2]
[386588799,1758411113302,-400.0,0.00023811,2]
[386588800,1758411113311,-1649.92,0.00023811,2]
[386588801,1758411113321,-1395.21,0.00023811,2]
[386588802,1758411113331,-400.0,0.00023811,2]
[386588803,1758411113340,-1741.39,0.00023811,2]
[386588804,1758411113350,-400.0,0.00023811,2]
[386588805,1758411113360,-441.21,0.00023811,2]
[386588806,1758411113369,-400.0,0.00023811,2]
[386588807,1758411113379,-1166.99,0.00023811,2]
[386588808,1758411113389,-1328.86,0.00023811,2]
[386588809,1758411113399,-1530.1,0.00023811,2]
[386588810,1758411113409,-400.0,0.00023811,2]
[386588811,1758411113419,-1274.15,0.00023811,2]
[386588812,1758411113432,-1562.65,0.00023811,2]
[386588813,1758411113442,-744.62,0.00023811,2]
[386588814,1758411113453,-655.75,0.00023811,2]
[386588815,1758411113463,-1347.66,0.00023811,2]
[386588816,1758411113473,-400.0,0.00023811,2]
[386588817,1758411113484,-1513.32,0.00023811,2]
[386588818,1758411113493,-1185.63,0.00023811,2]
[386588819,1758411113503,-1429.22,0.00023811,2]
[386588820,1758411113513,-1510.09,0.00023811,2]
[386588821,1758411113523,-1162.44,0.00023811,2]
[386588822,1758411113532,-975.71,0.00023811,2]
[386588823,1758411113542,-400.0,0.00023811,2]
[386588824,1758411113552,-400.0,0.00023811,2]
[386588825,1758411113562,-1113.41,0.00023811,2]
[386588826,1758411113572,-1005.5,0.00023811,2]
[386588827,1758411113581,-1004.12,0.00023811,2]
[386588828,1758411113591,-400.0,0.00023811,2]
[386588829,1758411113601,-1083.41,0.00023811,2]
[386588830,1758411113611,-400.0,0.00023811,2]
[386588831,1758411113621,-1400.45,0.00023811,2]
[386588832,1758411113631,-1270.34,0.00023811,2]
[386588833,1758411113640,-400.0,0.00023811,2]
[386588834,1758411113650,-447.43,0.00023811,2]
[386588835,1758411113659,-2000.0,0.00023816,2]
[386588836,1758411113669,-545.73134312,0.00023821,2]
[386588837,1758411113679,-1000.0,0.00023821,2]
[386588838,1758411113689,-1000.0,0.00023821,2]
[386588839,1758411113698,-570.51782186,0.00023821,2]
[386588840,1758411113707,-1000.0,0.00023821,2]
[386588841,1758411113717,-1000.0,0.00023821,2]
[386588842,1758411113728,-1000.0,0.00023821,2]
[386588843,1758411113738,-1000.0,0.00023821,2]
[386588844,1758411113748,-1000.0,0.00023821,2]
[386588845,1758411113758,-1000.0,0.00023821,2]
[386588846,1758411113768,-1000.0,0.00023821,2]
[386588847,1758411113778,-1000.0,0.00023821,2]
[386588848,1758411113788,-167.67785927,0.00023821,2]
[386588849,1758411113798,-1000.0,0.00023821,2]
[386588850,1758411113808,-1000.0,0.00023821,2]
[386588851,1758411113819,-1005.65574388,0.00023821,2]
[386588852,1758411113828,-1000.0,0.00023821,2]
[386588853,1758411113838,-1000.0,0.00023821,2]
[386588854,1758411113848,-1000.0,0.00023821,2]
[386588855,1758411113858,-1002.46481246,0.00023821,2]
[386588856,1758411113869,-1002.78937702,0.00023821,2]
[386588857,1758411113879,-501.70849173,0.00023821,2]
[386588858,1758411113888,-1000.0,0.00023821,2]
[386588859,1758411113898,-1000.0,0.00023821,2]
[386588860,1758411113908,-1000.0,0.00023821,2]
[386588861,1758411113917,-1000.0,0.00023821,2]
[386588862,1758411113928,-1000.0,0.00023821,2]
[386588863,1758411113938,-400.0,0.00023832,2]
[386588864,1758411113947,-400.0,0.00023832,2]
[386588865,1758411113957,-400.0,0.00023832,2]
[386588866,1758411113966,-400.0,0.00023832,2]
[386588867,1758411113976,-618.67,0.00023832,2]
[386588868,1758411113986,-400.0,0.00023832,2]
[386588869,1758411113996,-400.0,0.00023832,2]
[386588870,1758411114006,-400.0,0.00023832,2]
[386588871,1758411114015,-400.0,0.00023832,2]
[386588872,1758411114025,-400.0,0.00023832,2]
[386588873,1758411114035,-400.0,0.00023832,2]
[386588874,1758411114044,-404.1539533,0.00023832,2]
[386588875,1758411114054,-400.0,0.00023832,2]
[386588876,1758411114064,-288.92426865,0.00023832,2]
[386588877,1758411114074,-400.0,0.00023832,2]
[386588878,1758411114084,-400.0,0.00023832,2]
[386588879,1758411114093,-400.0,0.00023832,2]
[386588880,1758411114103,-400.0,0.00023832,2]
[386588881,1758411114114,-400.0,0.00023832,2]
[386588882,1758411114123,-400.0,0.00023832,2]
[386588883,1758411114369,-400.0,0.00023832,2]
[386588884,1758411114382,-400.0,0.00023832,2]
[386588885,1758411114392,-400.0,0.00023832,2]
[386588886,1758411114402,-400.0,0.00023832,2]
[386588887,1758411114411,-400.0,0.00023832,2]
[386588888,1758411114422,-400.0,0.00023832,2]
[386588889,1758411114431,-2778.05,0.00023832,2]
[386588890,1758411114441,-2740.5,0.00023832,2]
[386588891,1758411114450,-2530.65,0.00023832,2]
[386588892,1758411114460,-2560.68,0.00023832,2]
[386588893,1758411114470,-539.47,0.00023832,2]
[386588894,1758411114480,-1181.97,0.00023832,2]
[386588895,1758411114490,-642.68,0.00023832,2]
[386588896,1758411114500,-620.69,0.00023832,2]
[386588897,1758411114509,-1787.31,0.00023832,2]
[386588898,1758411114519,-1779.88,0.00023832,2]
[386588899,1758411114530,-861.83,0.00023832,2]
[386588900,1758411114540,-4024.04,0.00023832,2]
[386588901,1758411114549,-4563.64,0.00023832,2]
[386588902,1758411114560,-400.0,0.00023832,2]
[386588903,1758411114570,-400.0,0.00023832,2]
[386588904,1758411114580,-1828.67,0.00023832,2]
[386588905,1758411114589,-4338.52,0.00023832,2]
[386588906,1758411114599,-400.0,0.00023833,2]
[386588907,1758411114609,-400.0,0.00023833,2]
[386588908,1758411114619,-804.04,0.00023833,2]
[386588909,1758411114629,-400.0,0.00023833,2]
[386588910,1758411114639,-400.0,0.00023833,2]
[386588911,1758411114649,-413.48845721,0.00023833,2]
[386588912,1758411114659,-400.0,0.00023833,2]
[386588913,1758411114668,-1361.22,0.00023833,2]
[386588914,1758411114678,-400.0,0.00023833,2]
[386588915,1758411114688,-491.8,0.00023833,2]
[386588916,1758411114698,-505.35,0.00023833,2]
[386588917,1758411114708,-400.0,0.00023833,2]
[386588918,1758411114718,-2099.55,0.00023833,2]
[386588919,1758411114729,-926.44,0.00023833,2]
[386588920,1758411114740,-1744.9,0.00023833,2]
[386588921,1758411114751,-400.0,0.00023833,2]
[386588922,1758411114760,-506.29,0.00023833,2]
[386588923,1758411114770,-647.58,0.00023833,2]
[386588924,1758411114780,-400.0,0.00023833,2]
[386588925,1758411114790,-3144.51,0.00023833,2]
[386588926,1758411114800,-1896.02,0.00023833,2]
[386588927,1758411114810,-1417.89,0.00023833,2]
[386588928,1758411114819,-622.74,0.00023833,2]
[386588929,1758411114829,-1888.15,0.00023833,2]
[386588930,1758411114839,-1607.87,0.00023833,2]
[386588931,1758411114849,-1091.76,0.00023833,2]
[386588932,1758411114859,-1688.66,0.00023833,2]
[386588933,1758411114869,-1874.59,0.00023833,2]
[386588934,1758411114879,-1208.16,0.00023833,2]
[386588935,1758411114889,-809.74,0.00023833,2]
[386588936,1758411114899,-428.95,0.00023833,2]
[386588937,1758411114909,-400.0,0.00023833,2]
[386588938,1758411114918,-1589.58,0.00023833,2]
[386588939,1758411114928,-4454.03,0.00023833,2]
[386588940,1758411114938,-400.0,0.00023833,2]
[386588941,1758411114948,-1378.3,0.00023833,2]
[386588942,1758411114958,-756.29,0.00023833,2]
[386588943,1758411114968,-1848.95,0.00023833,2]
[386588944,1758411114978,-2764.59,0.00023833,2]
[386588945,1758411114988,-1405.15,0.00023833,2]
[386588946,1758411114998,-497.27,0.00023833,2]
[386588947,1758411115008,-1115.22,0.00023833,2]
[386588948,1758411115018,-1064.12,0.00023833,2]
[386588949,1758411115028,-1265.42,0.00023833,2]
[386588950,1758411115038,-1982.28,0.00023833,2]
[386588951,1758411115048,-807.03,0.00023833,2]
[386588952,1758411115057,-2024.1,0.00023833,2]
[386588953,1758411115067,-400.0,0.00023833,2]
[386588954,1758411115078,-778.85,0.00023833,2]
[386588955,1758411115088,-2075.63,0.00023833,2]
[386588956,1758411115099,-1362.62,0.00023833,2]
[386588957,1758411115111,-1590.96,0.00023833,2]
[386588958,1758411115122,-825.66,0.00023833,2]
[386588959,1758411115133,-10521.07,0.00023833,2]
[386588960,1758411115142,-1133.66,0.00023833,2]
[386588961,1758411115151,-1489.62,0.00023833,2]
[386588962,1758411115161,-1816.89,0.00023833,2]
[386588963,1758411115173,-413.55100832,0.00023833,2]
[386588964,1758411115182,-699.21,0.00023833,2]
[386588965,1758411115192,-497.85,0.00023833,2]
[386588966,1758411115201,-1498.85,0.00023833,2]
[386588967,1758411115211,-433.96,0.00023833,2]
[386588968,1758411115220,-501.46,0.00023833,2]
[386588969,1758411115231,-1445.78,0.00023833,2]
[386588970,1758411115241,-1348.83,0.00023833,2]
[386588971,1758411115252,-400.0,0.00023833,2]
[386588972,1758411115264,-2422.53,0.00023833,2]
[386588973,1758411115273,-598.09,0.00023833,2]
[386588974,1758411115282,-409.78,0.00023833,2]
[386588975,1758411115293,-477.58,0.00023833,2]
[386588976,1758411115303,-1497.89,0.00023833,2]
[386588977,1758411115313,-860.36,0.00023833,2]
[386588978,1758411115323,-1589.08,0.00023833,2]
[386588979,1758411115333,-400.0,0.00023833,2]
[386588980,1758411115342,-400.0,0.00023833,2]
[386588981,1758411115352,-1089.9,0.00023833,2]
[386588982,1758411115362,-551.45,0.00023833,2]
[386588983,1758411115373,-1448.18,0.00023833,2]
[386588984,1758411115383,-1395.41,0.00023833,2]